bitfinex-derivatives/quotes_BTCF0:USTF0_20250101
["timestamp","ask_amount","ask_price","bid_price","bid_amount"]
[1735696134559,0.050366,93883.0,93882.0,0.3628]
[1735696136563,0.27116962,93896.0,93882.0,0.3628]
[1735696138052,0.053366,93883.0,93882.0,0.3628]
[1735696138560,0.053366,93883.0,93882.0,0.3608]
[1735696138753,0.053366,93883.0,93882.0,0.3618]
[1735696139058,0.27216962,93896.0,93885.0,0.053365]
[1735696139261,0.053363,93889.0,93885.0,0.053365]
[1735696140166,0.27116962,93896.0,93885.0,0.053365]
[1735696140357,0.053364,93888.0,93885.0,0.054365]
[1735696141964,0.054364,93888.0,93885.0,0.054365]
[1735696142561,0.053364,93887.0,93885.0,0.054365]
[1735696142758,0.001,93888.0,93885.0,0.054365]
[1735696143950,0.053365,93886.0,93885.0,0.054365]
[1735696144463,0.053365,93886.0,93885.0,0.02623881]
[1735696145563,0.054365,93886.0,93885.0,0.02523881]
[1735696145767,0.054365,93886.0,93885.0,0.001]
[1735696146061,0.054365,93886.0,93885.0,0.00047221]
[1735696152567,0.0015979,93905.0,93885.0,0.00047221]
[1735696152768,0.0015979,93905.0,93899.0,0.3608]
[1735696152957,0.0015979,93905.0,93903.0,0.053355]
[1735696153162,0.3608,93917.0,93903.0,0.053355]
[1735696153360,0.3608,93917.0,93909.0,0.3608]
[1735696153563,0.05335,93912.0,93909.0,0.3608]
[1735696155065,0.06135,93912.0,93909.0,0.3608]
[1735696155856,0.06635,93912.0,93910.0,0.0338]
[1735696157966,0.06635,93912.0,93909.0,0.33454624]
[1735696158973,0.013,93912.0,93909.0,0.33454624]
[1735696159270,0.053351,93911.0,93909.0,0.33454624]
[1735696161063,0.065351,93911.0,93909.0,0.33454624]
[1735696162168,0.056351,93911.0,93909.0,0.33454624]
[1735696162373,0.059351,93911.0,93909.0,0.33454624]
[1735696164067,0.056351,93911.0,93909.0,0.33454624]
[1735696164273,0.059351,93911.0,93909.0,0.33454624]
[1735696166278,0.006,93911.0,93909.0,0.33454624]
[1735696166483,0.006,93911.0,93909.0,0.38789724]
[1735696167987,0.004,93911.0,93909.0,0.38789724]
[1735696168582,0.005,93911.0,93909.0,0.38789724]
[1735696170178,0.005,93911.0,93909.0,0.33454624]
[1735696170383,0.005,93911.0,93910.0,0.053353]
[1735696170990,0.003,93911.0,93910.0,0.053353]
[1735696171293,0.005,93911.0,93910.0,0.053353]
[1735696171681,0.004,93911.0,93910.0,0.053353]
[1735696171888,0.002,93911.0,93910.0,0.053353]
[1735696172379,0.005,93911.0,93910.0,0.053353]
[1735696177283,0.005,93911.0,93910.0,0.07747407]
[1735696178693,0.23808219,93927.0,93910.0,0.02412107]
[1735696178894,0.23808219,93927.0,93909.0,0.33454624]
[1735696179393,0.05335,93916.0,93911.0,0.053353]
[1735696179595,0.05335,93916.0,93912.0,0.053352]
[1735696181198,0.05335,93916.0,93915.0,0.33498482]
[1735696181403,0.05335,93916.0,93915.0,0.28694364]
[1735696181903,0.05635,93916.0,93915.0,0.28694364]
[1735696182106,0.05935,93916.0,93915.0,0.28694364]
[1735696182702,0.05635,93916.0,93915.0,0.28694364]
[1735696182895,0.06035,93916.0,93915.0,0.28694364]
[1735696183604,0.05735,93916.0,93915.0,0.28694364]
[1735696183902,0.06035,93916.0,93915.0,0.28694364]
[1735696184892,0.06035,93916.0,93913.0,0.3608]
[1735696185301,0.06035,93916.0,93912.0,0.053352]
[1735696185503,0.06035,93916.0,93913.0,0.3608]
[1735696186907,0.053351,93915.0,93913.0,0.3608]
[1735696188108,0.057351,93915.0,93913.0,0.3608]
[1735696188407,0.060351,93915.0,93913.0,0.3608]
[1735696192200,0.053351,93914.0,93913.0,0.3608]
[1735696193710,0.056351,93914.0,93913.0,0.3608]
[1735696194311,0.060351,93914.0,93913.0,0.3608]
[1735696199218,0.060354,93914.0,93913.0,0.414154]
[1735696202510,0.060354,93914.0,93913.0,0.35410199]
[1735696203213,0.060354,93914.0,93913.0,0.053354]
[1735696205811,0.060354,93914.0,93909.0,0.02427646]
[1735696205812,0.007,93914.0,93909.0,0.02427646]
[1735696206012,0.007,93914.0,93908.0,0.053358]
[1735696206624,0.007,93914.0,93902.0,0.3608]
[1735696206929,0.3608,93909.0,93900.0,0.0335]
[1735696207109,0.3608,93909.0,93900.0,0.05587744]
[1735696207110,0.053364,93901.0,93900.0,0.05587744]
[1735696208423,0.053364,93901.0,93900.0,0.05887744]
[1735696212922,0.25952638,93909.0,93900.0,0.05887744]
[1735696213727,0.053364,93901.0,93900.0,0.003]
[1735696214317,0.05336,93908.0,93900.0,0.003]
[1735696214518,0.053364,93901.0,93900.0,0.003]
[1735696214820,0.053364,93901.0,93898.0,0.07160757]
[1735696214821,0.25952638,93909.0,93898.0,0.07160757]
[1735696215029,0.053364,93901.0,93900.0,0.003]
[1735696217326,0.050367,93895.0,93894.0,0.02129575]
[1735696219417,0.050367,93895.0,93894.0,0.02329575]
[1735696220028,0.051367,93895.0,93894.0,0.02329575]
[1735696220414,0.16486001,93895.0,93874.0,0.053379]
[1735696220619,0.16486001,93895.0,93880.0,0.07160757]
[1735696220620,0.053373,93885.0,93880.0,0.07160757]
[1735696220822,0.053373,93885.0,93883.0,0.38069465]
[1735696222626,0.053373,93885.0,93884.0,0.001]
[1735696223030,0.47532556,93885.0,93854.0,0.55271189]
[1735696223334,0.0037,93860.0,93854.0,0.19247189]
[1735696223531,0.6926,93859.0,93837.0,0.00056]
[1735696223725,0.6926,93859.0,93823.0,0.3608]
[1735696223726,0.0534,93837.0,93827.0,0.053406]
[1735696224033,0.11555145,93836.0,93827.0,0.12501357]
[1735696224232,0.053407,93826.0,93825.0,0.44834249]
[1735696224427,0.11555145,93836.0,93825.0,0.46743645]
[1735696224634,0.053403,93832.0,93826.0,0.07160757]
[1735696225335,0.001,93826.0,93823.0,0.38144579]
[1735696225534,0.001,93826.0,93823.0,0.38088579]
[1735696226125,0.001,93836.0,93823.0,0.38088579]
[1735696226324,0.001,93836.0,93826.0,0.10933036]
[1735696226728,0.11682861,93843.0,93826.0,0.10933036]
[1735696226928,0.001,93832.0,93826.0,0.10933036]
[1735696227735,0.001,93832.0,93828.0,0.053405]
[1735696227937,0.001,93832.0,93830.0,0.053404]
[1735696230134,0.11682861,93843.0,93830.0,0.002]
[1735696230437,0.11682861,93843.0,93835.0,0.053401]
[1735696230828,0.11682861,93843.0,93836.0,0.0534]
[1735696231030,0.11682861,93843.0,93830.0,0.002]
[1735696231237,0.11682861,93843.0,93823.0,0.38144579]
[1735696231429,0.11682861,93843.0,93837.0,0.0534]
[1735696232139,0.11682861,93843.0,93823.0,0.38088579]
[1735696232439,0.11682861,93843.0,93838.0,0.053399]
[1735696232939,0.11682861,93843.0,93840.0,0.053398]
[1735696233131,0.11882861,93843.0,93840.0,0.053398]
[1735696233639,0.11882861,93843.0,93823.0,0.38088579]
[1735696233841,0.10933036,93840.0,93823.0,0.38088579]
[1735696234028,0.053401,93836.0,93830.0,0.053404]
[1735696234731,0.053401,93836.0,93833.0,0.053402]
[1735696235141,0.004,93843.0,93823.0,0.38088579]
[1735696235434,0.004,93843.0,93827.0,0.053406]
[1735696235435,0.053401,93835.0,93827.0,0.053406]
[1735696235835,0.053401,93835.0,93823.0,0.38152579]
[1735696236039,0.053401,93835.0,93832.0,0.053403]
[1735696236945,0.054401,93835.0,93832.0,0.053403]
[1735696237342,0.055401,93835.0,93832.0,0.053403]
[1735696237542,0.054401,93835.0,93832.0,0.054403]
[1735696242540,0.3608,93833.0,93812.0,0.3608]
[1735696242745,0.05341,93820.0,93812.0,0.3608]
[1735696242940,0.05341,93820.0,93801.0,0.3608]
[1735696243145,0.05341,93820.0,93812.0,0.053414]
[1735696243339,0.05341,93820.0,93810.0,0.10933036]
[1735696243538,0.11347362,93819.0,93815.0,0.01786918]
[1735696243741,0.053412,93816.0,93810.0,0.053415]
[1735696244047,0.053412,93816.0,93811.0,0.053414]
[1735696244448,0.052412,93816.0,93811.0,0.053414]
[1735696245642,0.052412,93816.0,93814.0,0.0503962]
[1735696245847,0.052412,93816.0,93815.0,0.0328]
[1735696246048,0.053412,93816.0,93815.0,0.0328]
[1735696247034,0.052412,93816.0,93815.0,0.0328]
[1735696247242,0.053412,93816.0,93815.0,0.0328]
[1735696252938,0.05335039,93816.0,93815.0,0.0328]
[1735696268171,0.05635039,93816.0,93815.0,0.0328]
[1735696268863,0.05835039,93816.0,93815.0,0.0328]
[1735696273675,0.053412,93815.0,93814.0,0.01105479]
[1735696274583,0.053417,93807.0,93800.0,0.1]
[1735696275281,0.05342,93801.0,93800.0,0.1]
[1735696281983,0.07564505,93801.0,93800.0,0.1]
[1735696286587,0.07564505,93801.0,93767.0,0.24544876]
[1735696286588,0.053439,93768.0,93767.0,0.24544876]
[1735696286786,0.775039,93768.0,93767.0,0.24544876]
[1735696286980,0.89026756,93768.0,93767.0,0.24544876]
[1735696287781,0.89026756,93768.0,93762.0,0.0342]
[1735696287782,0.05344,93767.0,93762.0,0.0342]
[1735696288289,0.11601224,93766.0,93764.0,0.053441]
[1735696288588,0.73592,93768.0,93765.0,0.05344]
[1735696288790,0.7346,93768.0,93767.0,0.053439]
[1735696289583,0.013,93768.0,93767.0,0.053439]
[1735696289789,0.3063,93774.0,93773.0,0.053436]
[1735696290788,0.2518,93774.0,93773.0,0.053436]
[1735696290994,0.2668,93774.0,93773.0,0.053436]
[1735696292194,0.2638,93774.0,93773.0,0.053436]
[1735696292685,0.2638,93774.0,93767.0,0.053439]
[1735696293286,0.053437,93771.0,93767.0,0.053439]
[1735696293493,0.2638,93774.0,93762.0,0.0342]
[1735696293494,0.05344,93766.0,93762.0,0.0342]
[1735696293687,0.3608,93763.0,93762.0,0.0342]
[1735696295796,0.3608,93763.0,93762.0,0.0362]
[1735696298192,0.3608,93763.0,93762.0,0.0342]
[1735696298389,0.3608,93763.0,93762.0,0.0362]
[1735696298993,0.3608,93763.0,93762.0,0.0342]
[1735696299295,0.3608,93763.0,93762.0,0.0362]
[1735696301896,0.3608,93763.0,93762.0,0.089638]
[1735696311906,0.3608,93767.0,93766.0,0.053436]
[1735696313500,0.3618,93767.0,93766.0,0.053436]
[1735696315104,0.1628776,93767.0,93766.0,0.053436]
[1735696315305,0.001,93767.0,93766.0,0.053436]
[1735696318199,0.001,93767.0,93766.0,0.08121542]
[1735696327720,0.054435,93767.0,93766.0,0.02777942]
[1735696328019,0.054435,93767.0,93756.0,0.053441]
[1735696328020,0.001,93767.0,93756.0,0.053441]
[1735696328218,0.053438,93762.0,93757.0,0.10948516]
[1735696328517,0.3608,93765.0,93757.0,0.10948516]
[1735696328715,0.001,93767.0,93750.0,0.21897032]
[1735696328918,0.001,93767.0,93766.0,0.053435]
[1735696329118,0.02845296,93772.0,93758.0,0.3608]
[1735696329520,0.3608,93773.0,93758.0,0.3608]
[1735696329721,0.053435,93767.0,93763.0,0.053437]
[1735696329914,0.053437,93763.0,93757.0,0.05344]
[1735696330118,0.053437,93763.0,93758.0,0.053439]
[1735696330725,0.053437,93763.0,93758.0,0.057439]
[1735696331618,0.3608,93765.0,93758.0,0.004]
[1735696331818,0.053439,93759.0,93758.0,0.004]
[1735696332216,0.05284326,93764.0,93758.0,0.004]
[1735696332614,0.053439,93759.0,93758.0,0.004]
[1735696332919,0.053439,93759.0,93753.0,0.053443]
[1735696332920,0.053441,93756.0,93753.0,0.053443]
[1735696333510,0.05284326,93764.0,93688.0,0.01335269]
[1735696333511,0.053448,93744.0,93736.0,0.09076514]
[1735696333716,0.414248,93744.0,93738.0,0.02768821]
[1735696333917,0.43249126,93744.0,93737.0,0.053452]
[1735696334716,0.43249126,93744.0,93736.0,0.03731314]
[1735696335326,0.4324001,93744.0,93736.0,0.03731314]
[1735696335513,0.053452,93737.0,93736.0,0.03731314]
[1735696335719,0.051452,93737.0,93736.0,0.03731314]
[1735696335914,0.0843521,93743.0,93720.0,0.16294616]
[1735696336112,0.053457,93728.0,93721.0,0.053461]
[1735696336318,0.053459,93725.0,93720.0,0.10948516]
[1735696336719,0.051459,93725.0,93720.0,0.10948516]
[1735696337120,0.051459,93725.0,93720.0,0.16294616]
[1735696337517,0.052459,93725.0,93720.0,0.16794616]
[1735696338017,0.052459,93725.0,93720.0,0.11448516]
[1735696338232,0.001,93725.0,93720.0,0.005]
[1735696338426,0.001,93725.0,93724.0,0.053459]
[1735696338727,0.002,93725.0,93724.0,0.053459]
[1735696341519,0.002,93725.0,93715.0,0.10948516]
[1735696341720,0.002,93725.0,93718.0,0.053462]
[1735696342122,0.3608,93720.0,93718.0,0.053462]
[1735696342322,0.3608,93720.0,93715.0,0.10948516]
[1735696342323,0.414262,93720.0,93715.0,0.10948516]
[1735696343525,0.416262,93720.0,93715.0,0.10948516]
[1735696344319,0.416262,93720.0,93708.0,0.069]
[1735696344320,0.7236,93720.0,93707.0,0.053469]
[1735696344521,0.3608,93709.0,93707.0,0.053469]
[1735696344871,0.3608,93709.0,93705.0,0.00160056]
[1735696345649,0.3618,93709.0,93707.0,0.001]
[1735696346143,0.3628,93709.0,93707.0,0.001]
[1735696346438,0.415268,93709.0,93705.0,0.00260056]
[1735696347643,0.415268,93709.0,93705.0,0.05607056]
[1735696348043,0.415268,93709.0,93707.0,0.053469]
[1735696348251,0.415268,93709.0,93707.0,0.054469]
[1735696349049,0.053468,93708.0,93707.0,0.053469]
[1735696349941,0.053468,93708.0,93707.0,0.054469]
[1735696350145,0.091468,93708.0,93707.0,0.054469]
[1735696350338,0.091468,93708.0,93707.0,0.001]
[1735696350933,0.053469,93706.0,93705.0,0.00160056]
[1735696351929,0.039,93708.0,93705.0,0.00160056]
[1735696352130,0.038,93708.0,93707.0,0.001]
[1735696352732,0.038,93708.0,93705.0,0.00160056]
[1735696352933,0.038,93708.0,93705.0,0.00260056]
[1735696353348,0.039,93708.0,93705.0,0.00260056]
[1735696353652,0.039,93708.0,93705.0,0.00160056]
[1735696353956,0.039,93708.0,93707.0,0.001]
[1735696354557,0.05718235,93708.0,93707.0,0.001]
[1735696354947,0.05718235,93708.0,93686.0,0.00056]
[1735696354948,0.45070181,93708.0,93686.0,0.00056]
[1735696355151,0.3608,93687.0,93680.0,0.10948516]
[1735696355364,0.3608,93687.0,93668.0,0.3608]
[1735696355655,0.3608,93687.0,93677.0,0.10948516]
[1735696356255,0.3618,93687.0,93677.0,0.10948516]
[1735696356756,0.3628,93687.0,93677.0,0.10948516]
[1735696357347,0.3618,93687.0,93677.0,0.10948516]
[1735696357548,0.3628,93687.0,93677.0,0.10948516]
[1735696358058,0.3628,93687.0,93676.0,0.02649136]
[1735696358359,0.3628,93687.0,93676.0,0.00160056]
[1735696358360,0.11194775,93686.0,93676.0,0.00160056]
[1735696358655,0.14964775,93686.0,93676.0,0.00160056]
[1735696359751,0.11294775,93686.0,93676.0,0.11108572]
[1735696360753,0.11394775,93686.0,93676.0,0.11108572]
[1735696361655,0.302,93686.0,93676.0,0.00160056]
[1735696361856,0.3608,93679.0,93668.0,0.3608]
[1735696362257,0.1156055,93678.0,93662.0,0.02416466]
[1735696362453,0.1156055,93678.0,93660.0,0.36136]
[1735696362654,0.3608,93661.0,93660.0,0.00056]
[1735696363164,0.47222408,93661.0,93660.0,0.00056]
[1735696363357,0.47222408,93661.0,93643.0,0.19134675]
[1735696363553,0.3608,93644.0,93643.0,0.19134675]
[1735696364058,0.3608,93644.0,93638.0,0.024292]
[1735696364355,0.3608,93644.0,93631.0,0.0789]
[1735696364560,0.3608,93633.0,93631.0,0.0789]
[1735696365153,0.3608,93642.0,93631.0,0.0789]
[1735696365360,0.3608,93642.0,93634.0,0.10948516]
[1735696366354,0.3618,93642.0,93631.0,0.10375443]
[1735696367165,0.3608,93642.0,93631.0,0.10375443]
[1735696367462,0.3618,93642.0,93631.0,0.10375443]
[1735696367658,0.3628,93642.0,93631.0,0.10375443]
[1735696368161,0.3618,93642.0,93631.0,0.10375443]
[1735696368361,0.3628,93642.0,93631.0,0.10375443]
[1735696369656,0.002,93642.0,93631.0,0.46455443]
[1735696369851,0.002,93642.0,93641.0,0.3608]
[1735696370054,0.3608,93653.0,93641.0,0.3608]
[1735696370257,0.3608,93653.0,93643.0,0.10948516]
[1735696370567,0.3608,93670.0,93649.0,0.3608]
[1735696370765,0.3608,93670.0,93658.0,0.10948516]
[1735696372160,0.00260216,93668.0,93658.0,0.10948516]
[1735696372763,0.00360216,93668.0,93658.0,0.10948516]
[1735696372961,0.00360216,93668.0,93658.0,0.21897032]
[1735696373167,0.00360216,93668.0,93659.0,0.0406]
[1735696374569,0.00260216,93668.0,93659.0,0.0406]
[1735696374770,0.002,93668.0,93660.0,0.3608]
[1735696374964,0.001,93668.0,93660.0,0.3608]
[1735696375263,0.002,93668.0,93660.0,0.3608]
[1735696375566,0.3608,93695.0,93660.0,0.6608]
[1735696375761,0.3608,93695.0,93684.0,0.10948516]
[1735696375960,0.3608,93695.0,93685.0,0.0804]
[1735696376671,0.3618,93695.0,93685.0,0.0804]
[1735696378268,0.3608,93695.0,93685.0,0.1022499]
[1735696378473,0.3628,93695.0,93685.0,0.1022499]
[1735696378668,0.3628,93695.0,93685.0,0.0804]
[1735696378875,0.3608,93687.0,93685.0,0.0804]
[1735696379273,0.3608,93687.0,93685.0,0.0824]
[1735696381876,0.3608,93687.0,93685.0,0.0804]
[1735696382078,0.3608,93687.0,93685.0,0.0814]
[1735696390681,0.3608,93687.0,93685.0,0.001]
[1735696391490,0.3608,93695.0,93685.0,0.001]
[1735696391696,0.3608,93695.0,93686.0,0.0746]
[1735696391900,0.3608,93695.0,93687.0,0.0373]
[1735696393387,0.3608,93695.0,93687.0,0.0383]
[1735696394693,0.3618,93695.0,93687.0,0.0383]
[1735696399300,0.01819139,93694.0,93687.0,0.0383]
[1735696400688,0.01919139,93694.0,93687.0,0.0383]
[1735696401893,0.01919139,93694.0,93687.0,0.0373]
[1735696402203,0.01919139,93694.0,93687.0,0.0383]
[1735696402404,0.01919139,93694.0,93691.0,6.339e-05]
[1735696403296,0.001,93694.0,93691.0,6.339e-05]
[1735696404197,0.002,93694.0,93691.0,6.339e-05]
[1735696405293,0.003,93694.0,93691.0,6.339e-05]
[1735696406897,0.0794,93718.0,93693.0,0.3608]
[1735696407101,0.0794,93718.0,93709.0,0.3608]
[1735696408104,0.0814,93718.0,93709.0,0.3608]
[1735696408602,0.0904,93718.0,93709.0,0.3618]
[1735696409097,0.0505,93718.0,93709.0,0.3618]
[1735696409508,0.0505,93718.0,93709.0,0.38319545]
[1735696409689,0.0535,93718.0,93709.0,0.38319545]
[1735696411205,0.0535,93718.0,93710.0,0.0412]
[1735696411693,0.014,93718.0,93710.0,0.0412]
[1735696412102,0.3608,93723.0,93710.0,0.0412]
[1735696412404,0.3608,93723.0,93711.0,0.043]
[1735696412698,0.0419,93729.0,93722.0,0.3608]
[1735696413300,0.001,93723.0,93722.0,0.3608]
[1735696413495,0.0419,93729.0,93722.0,0.3608]
[1735696413803,0.0391,93740.0,93722.0,0.3608]
[1735696414002,0.0391,93740.0,93727.0,0.10948516]
[1735696414398,0.001,93729.0,93727.0,0.10948516]
[1735696414597,0.001,93729.0,93722.0,0.38287436]
[1735696415097,0.001,93729.0,93722.0,0.38387436]
[1735696415507,0.001,93729.0,93722.0,0.38287436]
[1735696416104,0.00260074,93737.0,93722.0,0.38287436]
[1735696416399,0.00260074,93737.0,93727.0,0.10948516]
[1735696416603,0.001,93729.0,93727.0,0.10948516]
[1735696416795,0.001,93729.0,93722.0,0.39687436]
[1735696417197,0.24293508,93742.0,93722.0,0.39687436]
[1735696417390,0.001,93737.0,93732.0,0.10948516]
[1735696418400,0.001,93737.0,93736.0,0.3608]
[1735696418802,0.0406,93750.0,93736.0,0.3608]
[1735696418995,0.0406,93750.0,93744.0,0.3608]
[1735696420500,0.0394,93749.0,93744.0,0.3628]
[1735696421906,0.0394,93749.0,93744.0,0.3648]
[1735696422498,0.0394,93749.0,93744.0,0.3668]
[1735696422897,0.0394,93749.0,93744.0,0.3658]
[1735696423104,0.0394,93749.0,93744.0,0.3638]
[1735696424497,0.0394,93749.0,93744.0,0.003]
[1735696424700,0.0394,93749.0,93744.0,0.3638]
[1735696431001,0.0406,93750.0,93744.0,0.3638]
[1735696432506,0.0406,93750.0,93744.0,0.3628]
[1735696434710,0.3608,93758.0,93745.0,0.0394]
[1735696434911,0.4041,93758.0,93748.0,0.10948516]
[1735696435609,0.4041,93758.0,93748.0,0.04932873]
[1735696436806,0.4051,93758.0,93748.0,0.04932873]
[1735696438415,0.4051,93758.0,93748.0,0.05732873]
[1735696438719,0.4041,93758.0,93748.0,0.06032873]
[1735696439010,0.4041,93758.0,93748.0,0.01]
[1735696439201,0.4041,93758.0,93748.0,0.11948516]
[1735696440009,0.4041,93758.0,93748.0,0.11248516]
[1735696440311,0.4041,93758.0,93748.0,0.011]
[1735696440517,0.4041,93758.0,93723.0,0.3608]
[1735696440518,0.3608,93749.0,93723.0,0.3608]
[1735696440712,0.3608,93738.0,93723.0,0.3608]
[1735696441017,0.3608,93726.0,93712.0,0.3608]
[1735696441205,0.0808,93725.0,93712.0,0.3608]
[1735696441610,0.3608,93718.0,93710.0,0.10948516]
[1735696442516,0.3608,93718.0,93713.0,0.013]
[1735696443113,0.09843112,93717.0,93713.0,0.006]
[1735696444815,0.09843112,93717.0,93713.0,0.005]
[1735696445318,0.09843112,93717.0,93713.0,0.007]
[1735696446420,0.3608,93718.0,93713.0,0.007]
[1735696448115,0.3618,93718.0,93713.0,0.007]
[1735696448321,0.3618,93718.0,93713.0,0.005]
[1735696448510,0.3618,93718.0,93713.0,0.007]
[1735696456217,0.37951164,93718.0,93713.0,0.007]
[1735696456820,0.3608,93716.0,93713.0,0.007]
[1735696465028,0.09845043,93715.0,93713.0,0.007]
[1735696465733,0.09845043,93715.0,93702.0,0.3608]
[1735696466032,0.10948516,93712.0,93702.0,0.3608]
[1735696466228,0.09845043,93715.0,93702.0,0.3608]
[1735696466621,0.3608,93706.0,93701.0,0.01743154]
[1735696466828,0.3608,93706.0,93699.0,0.0409]
[1735696467523,0.3568,93706.0,93699.0,0.0409]
[1735696467831,0.3568,93706.0,93702.0,0.003]
[1735696468528,0.3568,93706.0,93699.0,0.05875417]
[1735696468729,0.3588,93706.0,93699.0,0.07075417]
[1735696469427,0.3588,93706.0,93702.0,0.009]
[1735696469738,0.002,93706.0,93702.0,0.00368187]
[1735696471030,0.001,93706.0,93702.0,0.003]
[1735696471523,0.001,93706.0,93702.0,0.012]
[1735696477133,0.001,93706.0,93704.0,5.677e-05]
[1735696478330,0.001,93706.0,93691.0,0.00160091]
[1735696478331,0.11332408,93705.0,93679.0,0.3608]
[1735696478537,0.3578,93694.0,93679.0,0.4008]
[1735696478733,0.3528,93694.0,93679.0,0.4008]
[1735696478933,0.12095602,93693.0,93679.0,0.4008]
[1735696479134,0.07197999,93690.0,93679.0,0.4008]
[1735696479434,0.3528,93694.0,93680.0,0.07197999]
[1735696479629,0.12095602,93689.0,93682.0,0.003]
[1735696479831,0.12376215,93692.0,93682.0,0.003]
[1735696480030,0.01838962,93693.0,93682.0,0.003]
[1735696481641,0.01838962,93693.0,93680.0,0.10966286]
[1735696482041,0.02038962,93693.0,93680.0,0.10966286]
[1735696482442,0.3608,93692.0,93680.0,0.10966286]
[1735696482642,0.01838962,93691.0,93680.0,0.10966286]
[1735696485353,0.11886364,93691.0,93680.0,0.10966286]
[1735696486043,0.11986364,93691.0,93680.0,0.10966286]
[1735696486451,0.02138962,93691.0,93680.0,0.10966286]
[1735696500967,0.02138962,93691.0,93690.0,0.3608]
[1735696501262,0.003,93691.0,93690.0,0.3608]
[1735696502057,0.002,93691.0,93690.0,0.3608]
[1735696502354,0.009,93691.0,93690.0,0.3608]
[1735696502962,0.009,93691.0,93681.0,0.07195008]
[1735696504561,0.007,93691.0,93681.0,0.07195008]
[1735696505570,0.002,93691.0,93681.0,0.07195008]
[1735696506670,0.002,93691.0,93687.0,0.3608]
[1735696507765,0.001,93691.0,93687.0,0.3608]
[1735696507959,0.003,93691.0,93687.0,0.3608]
[1735696508474,0.006,93691.0,93687.0,0.3608]
[1735696511277,0.006,93691.0,93687.0,0.37574974]
[1735696514272,0.006,93691.0,93679.0,0.04]
[1735696514470,0.1265,93690.0,93678.0,0.3608]
[1735696514679,0.1265,93690.0,93680.0,0.07195008]
[1735696516280,0.1265,93690.0,93680.0,0.10966673]
[1735696516465,0.1275,93690.0,93680.0,0.10966673]
[1735696517268,0.0435,93690.0,93680.0,0.10966673]
[1735696517471,0.0435,93690.0,93681.0,0.0416]
[1735696517675,0.0445,93690.0,93681.0,0.0416]
[1735696522378,0.002,93690.0,93681.0,0.0847]
[1735696523077,0.002,93690.0,93688.0,0.3608]
[1735696524179,0.007,93690.0,93688.0,0.3608]
[1735696524582,0.23757391,93705.0,93688.0,0.3608]
[1735696524883,0.23757391,93705.0,93690.0,0.21933346]
[1735696525083,0.48052,93718.0,93699.0,0.3608]
[1735696525285,0.00152,93718.0,93700.0,0.19816673]
[1735696525488,0.01487358,93721.0,93700.0,0.19816673]
[1735696525672,0.005,93705.0,93700.0,0.19816673]
[1735696525874,0.007,93705.0,93700.0,0.0885]
[1735696526681,0.007,93705.0,93700.0,0.02831374]
[1735696527582,0.005,93705.0,93700.0,0.02831374]
[1735696527782,0.005,93705.0,93699.0,0.3608]
[1735696527981,0.3748,93715.0,93699.0,0.3608]
[1735696528182,0.3748,93715.0,93700.0,0.10966673]
[1735696528386,0.004,93705.0,93700.0,0.10966673]
[1735696528687,0.013,93705.0,93699.0,0.3608]
[1735696528887,0.013,93705.0,93699.0,0.37582749]
[1735696529090,0.004,93705.0,93699.0,0.37582749]
[1735696529288,0.3738,93715.0,93699.0,0.37582749]
[1735696530682,0.3648,93715.0,93699.0,0.37582749]
[1735696530887,0.009,93705.0,93699.0,0.37582749]
[1735696531083,0.013,93705.0,93692.0,0.0434]
[1735696531389,0.013,93705.0,93679.0,0.3608]
[1735696531390,0.1183065,93704.0,93680.0,0.11126776]
[1735696531590,0.0433,93703.0,93680.0,0.11126776]
[1735696531983,0.12199412,93702.0,93680.0,0.11126776]
[1735696532584,0.3608,93696.0,93684.0,0.01551137]
[1735696532791,0.0853,93695.0,93684.0,0.01551137]
[1735696533391,0.18376571,93695.0,93684.0,0.01551137]
[1735696534397,0.0853,93695.0,93684.0,0.01551137]
[1735696534893,0.0893,93695.0,93684.0,0.01551137]
[1735696535787,0.0913,93695.0,93684.0,0.01551137]
[1735696536695,0.09846571,93694.0,93684.0,0.01551137]
[1735696537887,0.10046571,93694.0,93684.0,0.01551137]
[1735696538186,0.10446571,93694.0,93684.0,0.01551137]
[1735696538682,0.10446571,93694.0,93680.0,0.11126776]
[1735696539998,0.006,93694.0,93680.0,0.11126776]
[1735696540896,0.31630057,93697.0,93680.0,0.11126776]
[1735696540897,0.16510456,93697.0,93680.0,0.11126776]
[1735696541395,0.12148881,93696.0,93680.0,0.11126776]
[1735696542197,0.12148881,93696.0,93683.0,0.3608]
[1735696543998,0.12348881,93696.0,93683.0,0.3608]
[1735696545302,0.12148881,93696.0,93683.0,0.3608]
[1735696545787,0.12148881,93696.0,93683.0,0.3618]
[1735696546704,0.12148881,93696.0,93692.0,0.3608]
[1735696546999,0.16510456,93697.0,93692.0,0.30060426]
[1735696547194,0.16510456,93697.0,93693.0,0.0448]
[1735696547401,0.0856,93710.0,93693.0,0.0448]
[1735696548000,0.0856,93710.0,93694.0,0.0423]
[1735696548398,0.002,93697.0,93694.0,0.0423]
[1735696549705,0.002,93697.0,93683.0,0.3608]
[1735696549999,0.005,93697.0,93683.0,0.3608]
[1735696551704,0.3608,93704.0,93683.0,0.3608]
[1735696552104,0.11391033,93703.0,93683.0,0.3608]
[1735696552502,0.11391033,93703.0,93690.0,0.10966673]
[1735696553903,0.11591033,93703.0,93690.0,0.10966673]
[1735696554108,0.11591033,93703.0,93683.0,0.3608]
[1735696555110,0.09847056,93702.0,93683.0,0.3608]
[1735696555509,0.12255392,93701.0,93683.0,0.3608]
[1735696556310,0.09847056,93700.0,93683.0,0.3608]
[1735696556720,0.12378354,93699.0,93683.0,0.3608]
[1735696557424,0.09847056,93698.0,93683.0,0.3608]